bitfinex/quotes_ETHUSD_20241106
["timestamp","ask_amount","ask_price","bid_price","bid_amount"]
[1730859776007,8.72018,2530.2,2529.6,3.95318]
[1730859776206,3.95244,2530.1,2529.4,7.90678]
[1730859776379,3.95244,2530.1,2529.4,3.95339]
[1730859776780,7.90472,2530.2,2529.5,3.95333]
[1730859776928,7.90472,2530.2,2529.0,0.56679169]
[1730859776929,0.8154,2530.6,2529.0,0.56679169]
[1730859777090,3.95094,2531.1,2530.4,3.9518]
[1730859777293,3.95094,2531.1,2529.8,7.90576]
[1730859777294,3.95114,2531.0,2530.2,3.9521]
[1730859777815,3.95094,2531.1,2530.2,3.9521]
[1730859778014,3.95101,2531.0,2530.4,3.95194]
[1730859778198,3.95116,2530.9,2530.2,3.9521]
[1730859778399,3.95116,2530.9,2530.3,3.95208]
[1730859779212,3.95161,2530.7,2530.0,3.95252]
[1730859779433,3.95126,2530.9,2530.2,3.95225]
[1730859779738,3.95126,2530.9,2530.3,3.952]
[1730859780026,3.95126,2530.9,2530.2,3.95225]
[1730859780027,3.95134,2530.8,2530.2,3.95219]
[1730859780234,3.95111,2531.0,2530.3,3.95209]
[1730859780654,3.95103,2531.0,2530.0,3.95256]
[1730859780822,3.95179,2530.5,2529.7,4.51952789]
[1730859781025,0.8154,2531.2,2530.2,3.95215]
[1730859781026,3.95118,2530.9,2530.2,3.95215]
[1730859781318,3.95151,2530.7,2530.0,3.95246]
[1730859781514,3.95179,2530.5,2530.0,3.95246]
[1730859781715,3.95124,2530.9,2530.2,3.95212]
[1730859781919,3.95215,2530.3,2529.6,4.51952968]
[1730859782118,3.95215,2530.3,2529.7,0.35398284]
[1730859782344,3.95183,2530.5,2529.9,3.95267]
[1730859782545,7.90374,2530.5,2529.9,3.95267]
[1730859782751,3.95183,2530.5,2529.9,3.95267]
[1730859782934,3.951,2531.0,2529.7,3.95294]
[1730859783251,3.951,2531.0,2529.5,3.95333]
[1730859783252,3.95177,2530.6,2529.9,3.95269]
[1730859783410,3.95177,2530.6,2529.9,3.95261]
[1730859783610,7.90352,2530.6,2529.9,3.95261]
[1730859783843,3.95175,2530.6,2529.9,3.95261]
[1730859784054,4.7662,2531.2,2530.6,3.95159]
[1730859784209,0.01,2532.2,2531.0,3.95087]
[1730859784210,3.95008,2531.6,2531.0,3.95087]
[1730859784756,4.73628,2531.8,2531.2,3.95065]
[1730859784906,3.94988,2531.8,2531.0,3.95087]
[1730859785103,3.95023,2531.5,2530.8,3.95122]
[1730859785351,3.94995,2531.7,2530.9,4.03005141]
[1730859785533,3.94995,2531.7,2530.9,3.95104]
[1730859785844,0.7864,2532.2,2531.5,3.9501]
[1730859785845,3.94938,2532.1,2531.5,3.9501]
[1730859786949,7.89879,2532.1,2531.5,3.9501]
[1730859787308,3.94938,2532.1,2531.3,3.95042]
[1730859787652,3.94971,2531.9,2531.3,3.95042]
[1730859787832,3.94971,2531.9,2530.8,3.95131]
[1730859788005,3.94971,2531.9,2531.3,3.95042]
[1730859788212,3.94888,2532.4,2531.3,7.9008]
[1730859788452,3.94924,2532.2,2531.1,3.95078]
[1730859788626,3.94969,2531.9,2530.7,8.46770193]
[1730859788946,0.394924,2532.1,2530.8,0.3531226]
[1730859789155,0.394924,2532.1,2531.1,3.95085]
[1730859789306,3.94953,2532.0,2530.9,3.95107]
[1730859789508,3.94913,2532.2,2531.1,3.95083]
[1730859789711,3.94913,2532.2,2531.0,0.07901156]
[1730859789712,3.94977,2531.8,2530.8,3.95126]
[1730859790005,3.95084,2531.2,2530.1,3.9523]
[1730859790208,4.73633,2531.7,2530.2,0.43217891]
[1730859790209,3.95045,2531.4,2530.2,0.43217891]
[1730859790452,3.95045,2531.4,2530.4,3.95192]
[1730859790750,3.95081,2531.2,2530.1,3.95229]
[1730859790911,3.95051,2531.4,2529.8,0.78667207]
[1730859791233,3.95081,2531.2,2530.2,3.95213]
[1730859791792,0.7864,2531.7,2530.9,3.95115]
[1730859791909,0.7864,2531.7,2531.2,3.9506]
[1730859792110,0.7864,2532.2,2531.2,3.9506]
[1730859792419,0.7864,2532.2,2531.3,0.07900183]
[1730859792623,0.7864,2532.2,2531.8,3.94975]
[1730859792858,0.7864,2532.2,2530.9,0.39570413]
[1730859792859,0.7864,2532.2,2531.6,3.95005]
[1730859793012,0.7864,2532.2,2531.4,3.95027]
[1730859793414,0.7864,2532.2,2531.6,3.95006]
[1730859793651,0.7864,2532.7,2531.7,3.94988]
[1730859793909,0.7864,2532.7,2531.8,0.07899184]
[1730859794141,0.7864,2532.7,2532.1,3.94916]
[1730859794450,0.7864,2533.1,2532.0,3.94929]
[1730859794655,0.7864,2533.1,2531.8,3.94964]
[1730859794810,0.7864,2533.1,2532.0,3.94944]
[1730859795013,0.7864,2533.1,2531.8,3.94964]
[1730859795014,0.7864,2533.1,2531.9,3.94954]
[1730859795598,0.7864,2533.1,2531.8,3.94964]
[1730859795793,0.7864,2533.1,2532.0,3.94933]
[1730859796009,0.7864,2533.1,2532.1,0.07898278]
[1730859796161,0.7864,2533.1,2532.4,3.9488]
[1730859796569,0.7864,2533.1,2532.6,3.94849]
[1730859796896,0.0203176,2533.2,2532.6,3.94849]
[1730859797049,0.0203176,2533.2,2532.1,3.94921]
[1730859797050,0.0203176,2533.2,2532.9,3.94804]
[1730859797255,0.0203176,2533.2,2533.1,3.94773]
[1730859798299,0.0631951,2534.5,2534.0,3.94621]
[1730859798662,0.0631951,2534.5,2533.9,3.94648]
[1730859798992,0.0631951,2534.5,2533.8,7.89311]
[1730859799190,0.0631951,2534.5,2533.4,3.94724]
[1730859799497,0.0631951,2534.5,2533.2,3.94751]
[1730859799702,0.0631951,2534.5,2532.3,0.01]
[1730859799703,0.0631951,2534.5,2533.0,7.89576]
[1730859799994,0.0631951,2534.5,2533.6,3.94693]
[1730859800366,0.0631951,2534.5,2534.4,3.9457]
[1730859800552,0.0631951,2534.5,2534.3,3.94584]
[1730859800756,0.0631951,2534.5,2534.0,3.94628]
[1730859800996,0.0631951,2534.5,2533.9,3.94637]
[1730859801170,0.0631951,2534.5,2533.8,3.94659]
[1730859801379,0.0631951,2534.5,2533.7,3.94665]
[1730859801565,0.0631951,2534.5,2532.9,0.01]
[1730859801566,0.0631951,2534.5,2533.8,3.94655]
[1730859802186,0.0631951,2534.5,2533.4,3.94721]
[1730859802386,0.7864,2534.4,2533.4,3.94721]
[1730859802707,0.7864,2534.4,2533.5,3.94705]
[1730859802870,0.7864,2534.4,2533.3,3.94739]
[1730859803560,0.7864,2534.4,2533.5,3.94697]
[1730859803755,0.7864,2534.4,2532.9,7.89608]
[1730859803756,0.7864,2534.4,2533.3,3.94735]
[1730859804196,0.7864,2534.4,2533.1,3.94765]
[1730859804406,0.7864,2534.4,2532.9,3.94796]
[1730859805475,0.7864,2534.4,2532.7,3.94827]
[1730859805693,0.01,2534.1,2532.5,3.94858]
[1730859806007,0.7864,2534.0,2532.7,3.94831]
[1730859806212,0.7864,2534.0,2532.9,3.94803]
[1730859806511,0.7864,2534.0,2532.7,3.94831]
[1730859806512,0.7864,2534.0,2532.7,3.94834]
[1730859807058,0.7864,2534.0,2532.5,3.94858]
[1730859807310,0.7864,2533.8,2532.2,0.78667207]
[1730859807464,0.7864,2533.3,2531.7,3.94979]
[1730859807799,0.7864,2533.3,2532.2,0.7864]
[1730859807973,0.8323,2532.7,2531.7,3.94979]
[1730859808179,0.8323,2532.7,2531.8,3.94967]
[1730859808403,5.25879,2532.7,2531.5,3.9502]
[1730859808561,3.94864,2532.6,2531.6,3.95006]
[1730859808766,5.25879,2532.7,2531.5,3.9502]
[1730859808993,3.94877,2532.5,2531.4,0.07899422]
[1730859809162,3.94877,2532.5,2531.5,3.95007]
[1730859809366,0.8323,2532.7,2531.8,3.94975]
[1730859809567,0.8323,2532.7,2531.9,3.94959]
[1730859809787,0.8323,2532.7,2531.9,3.94945]
[1730859810013,0.8323,2532.7,2532.3,3.94896]
[1730859810612,3.94661,2533.9,2531.8,3.94975]
[1730859810613,0.8323,2533.1,2532.6,3.94836]
[1730859810829,0.01,2534.4,2531.8,3.94975]
[1730859810830,0.8323,2534.0,2532.7,0.07896296]
[1730859810978,0.8323,2534.0,2533.5,3.94703]
[1730859811179,0.8323,2535.0,2532.5,3.0]
[1730859811389,0.8323,2535.0,2534.3,3.94585]
[1730859812225,0.8323,2535.0,2533.9,3.94635]
[1730859812226,4.7772,2535.0,2533.9,3.94635]
[1730859812526,0.8323,2535.0,2534.2,3.94599]
[1730859812690,4.77709,2535.0,2534.0,3.94629]
[1730859812893,4.77709,2535.0,2533.4,3.94725]
[1730859812894,3.94521,2534.8,2533.6,3.94688]
[1730859813093,4.77711,2535.0,2533.7,0.07892587]
[1730859813302,3.94514,2534.8,2533.5,3.94704]
[1730859813626,3.94514,2534.8,2533.8,3.94658]
[1730859813990,3.94498,2534.9,2533.9,3.94637]
[1730859814211,3.0,2534.9,2534.0,3.94618]
[1730859814411,0.8323,2535.0,2534.2,3.94598]
[1730859814586,0.8323,2535.0,2534.4,3.9457]
[1730859815087,0.8323,2535.0,2533.6,3.94695]
[1730859815288,0.8323,2535.0,2534.2,3.94591]
[1730859815717,0.8323,2535.0,2534.4,3.9457]
[1730859816817,0.8323,2535.5,2534.8,3.94498]
[1730859817491,0.0631951,2535.7,2535.2,3.94431]
[1730859819207,0.0631951,2535.7,2535.3,0.07888114]
[1730859819419,0.0631951,2535.7,2535.2,3.94436]
[1730859819627,0.0631951,2535.7,2535.3,4.02316529]
[1730859820128,0.0631951,2535.7,2535.3,0.07887529]
[1730859820908,0.0631951,2535.7,2535.4,3.94413]
[1730859821318,0.0631951,2535.7,2535.3,0.07887529]
[1730859821723,0.0631951,2535.7,2535.3,4.02305531]
[1730859821920,0.0631951,2535.7,2535.3,0.07887531]
[1730859822215,0.0631951,2535.7,2535.2,3.94433]
[1730859823096,0.0631951,2535.7,2535.0,3.94471]
[1730859823446,0.8323,2535.4,2534.5,3.94552]
[1730859823622,3.94431,2535.3,2534.3,7.8916]
[1730859823792,3.94431,2535.3,2534.1,5.526739]
[1730859824117,3.94503,2534.9,2533.9,3.94643]
[1730859824431,7.89061,2534.7,2533.7,3.94668]
[1730859824732,7.89061,2534.7,2533.0,5.92498094]
[1730859824733,0.8323,2534.6,2533.8,3.94661]
[1730859824894,0.8323,2534.6,2534.0,3.94632]
[1730859825093,0.8323,2535.0,2534.4,3.9457]
[1730859825294,0.8323,2535.0,2534.4,3.94559]
[1730859825590,0.8323,2535.0,2534.4,7.89118]
[1730859825790,0.8323,2535.0,2534.5,3.94549]
[1730859826032,0.8323,2535.0,2534.8,3.94494]
[1730859826252,0.8323,2535.6,2535.1,3.94451]
[1730859826721,4.77616,2535.6,2534.8,3.94507]
[1730859826918,4.77616,2535.6,2534.6,3.94527]
[1730859827096,5.26809551,2535.6,2534.6,7.89055]
[1730859827297,9.21204551,2535.6,2534.6,3.94527]
[1730859827495,3.94399,2535.5,2534.6,3.94527]
[1730859827732,5.26809551,2535.6,2534.4,3.94564]
[1730859827733,3.9444,2535.3,2534.4,3.94564]
[1730859827935,3.94418,2535.4,2534.4,3.94564]
[1730859828099,0.8323,2535.6,2534.7,3.94508]
[1730859828299,0.8323,2535.6,2534.8,0.07889355]
[1730859828635,3.94409,2535.5,2534.5,7.8909]
[1730859828929,0.8323,2535.6,2534.5,3.94543]
[1730859829137,3.94432,2535.3,2534.5,3.94543]
[1730859829312,7.88853,2535.4,2534.5,3.94543]
[1730859829634,4.816343,2535.4,2534.4,3.94561]
[1730859829838,4.816343,2535.4,2534.3,3.94574]
[1730859829839,3.94449,2535.2,2534.3,3.94574]
[1730859830134,3.945,2534.9,2533.9,7.89282]
[1730859830438,0.8323,2534.8,2534.0,3.94619]
[1730859830638,1.2268,2534.8,2533.7,3.94673]
[1730859830935,3.94542,2534.6,2533.7,3.94673]
[1730859831232,0.8323,2534.8,2533.8,4.02551481]
[1730859831440,0.8323,2534.8,2534.0,3.9462]
[1730859831637,0.8323,2534.8,2534.2,3.94601]
[1730859831943,0.8323,2535.2,2534.4,3.94561]
[1730859832100,0.8323,2535.2,2534.7,3.94514]
[1730859832833,0.8323,2535.2,2534.9,3.94488]
[1730859833135,0.8323,2535.2,2534.8,0.07889895]
[1730859833337,0.8323,2535.2,2534.7,3.94518]
[1730859833842,0.8323,2535.2,2534.1,3.94612]
[1730859834001,0.8323,2535.2,2534.8,3.94498]
[1730859834203,0.8323,2535.2,2535.0,3.94475]
[1730859834726,0.8323,2535.2,2534.7,3.94511]
[1730859834904,0.1431951,2535.7,2534.8,0.07889351]
[1730859834905,8.0307551,2535.7,2534.8,0.07889351]
[1730859835097,3.94384,2535.6,2534.8,0.07889351]
[1730859835716,3.94416,2535.4,2534.6,3.94537]
[1730859835911,3.94384,2535.6,2534.5,3.94546]
[1730859836205,4.46285106,2535.6,2534.5,3.94546]
[1730859836550,3.94457,2535.2,2534.3,3.94579]
[1730859836754,3.94478,2535.0,2534.1,3.94607]
[1730859837050,3.94457,2535.2,2533.5,1.581075]
[1730859837051,3.94501,2534.9,2533.5,1.581075]
[1730859837260,3.94499,2534.9,2534.0,3.94623]
[1730859837539,3.94489,2535.0,2534.1,3.94616]
[1730859838044,3.94489,2535.0,2533.6,4.02582672]
[1730859838045,0.8323,2534.9,2534.4,3.94558]
[1730859839000,0.8323,2534.9,2534.4,3.9457]
[1730859839206,0.8323,2534.9,2534.2,3.9459]
[1730859839631,0.8323,2534.9,2533.8,0.56314217]
[1730859839820,0.8323,2534.9,2534.3,3.94582]
[1730859840323,0.8323,2534.9,2534.4,0.35266495]
[1730859840523,0.8323,2534.9,2534.3,3.94582]
[1730859840524,0.8323,2534.9,2534.1,3.94609]
[1730859840737,4.77737,2534.9,2534.2,0.91688683]
[1730859840935,4.77737,2534.9,2534.3,0.35264878]
[1730859841138,4.77737,2534.9,2534.1,3.94609]
[1730859841334,0.8323,2534.9,2534.2,0.91780788]
[1730859841560,0.8323,2534.9,2534.1,3.94609]
[1730859841561,0.8323,2534.9,2534.3,0.35300303]
[1730859841759,0.8323,2534.9,2534.4,0.35300303]
[1730859841967,3.94555,2534.5,2534.0,0.56476726]
[1730859842117,3.94555,2534.5,2534.1,0.35308862]
[1730859842464,3.94508,2534.8,2533.8,4.51157734]
[1730859842624,3.94568,2534.5,2533.9,0.35315458]
[1730859842957,4.422868,2534.8,2534.0,0.35317447]
[1730859843156,0.8323,2534.9,2534.0,0.35317447]
[1730859843157,0.8323,2534.9,2534.1,0.35317447]
[1730859843459,0.8323,2534.9,2534.3,3.94586]
[1730859843666,0.8323,2534.9,2534.4,35.0]
[1730859844467,0.8323,2534.9,2534.1,3.94608]
[1730859844667,4.77725,2534.9,2534.2,0.35318961]
[1730859844825,3.94536,2534.7,2534.3,0.3532143]
[1730859845031,0.8323,2534.9,2533.9,0.9184956]
[1730859845227,0.8323,2534.9,2534.2,3.94592]
[1730859845422,0.8323,2534.9,2534.3,35.3533232]
[1730859845633,0.8323,2534.9,2534.3,35.0]
[1730859845840,0.8323,2534.9,2534.3,38.94581]
[1730859846366,0.8323,2534.9,2533.5,7.8942]
[1730859846567,0.8323,2534.9,2534.2,3.946]
[1730859846858,0.8323,2534.9,2533.8,39.51151345]
[1730859847046,4.77734,2534.9,2534.0,3.94624]
[1730859847259,4.77734,2534.9,2534.1,0.35306412]
[1730859847565,3.94516,2534.8,2534.0,3.9462]
[1730859847867,4.77734,2534.9,2534.2,3.94592]
[1730859847868,0.8323,2534.9,2534.2,3.94592]
[1730859848175,0.8323,2534.9,2534.2,7.89184]
[1730859848381,0.8323,2534.9,2534.2,3.94592]
[1730859848876,0.8323,2534.9,2533.9,3.94648]
[1730859849075,0.8323,2534.9,2534.3,3.94577]
[1730859849292,0.8323,2534.9,2534.1,3.94604]
[1730859849293,4.77723,2534.9,2534.1,3.94604]
[1730859849944,3.94508,2534.8,2533.5,3.9471]
[1730859850166,0.8323,2534.9,2533.6,1.20190393]
[1730859850336,7.89122,2534.5,2533.7,35.35350116]
[1730859850535,4.77734,2534.9,2534.1,3.94606]
[1730859850740,3.94547,2534.6,2533.8,3.94655]
[1730859851045,3.94568,2534.5,2533.7,35.0]
[1730859851245,3.9458,2534.4,2533.6,3.94687]
[1730859851481,0.8027,2534.0,2533.4,3.94717]
[1730859851771,0.8027,2534.0,2533.5,0.35370548]
[1730859852005,4.74903,2534.0,2533.4,0.35379819]
[1730859852279,4.74903,2534.0,2533.1,0.56628003]
[1730859852280,0.8027,2534.0,2533.1,0.56628003]
[1730859852452,0.8027,2534.0,2533.2,3.94754]
[1730859852656,4.74907,2534.0,2533.2,3.94754]
[1730859853267,8.69552,2534.0,2533.2,3.94754]
[1730859853653,4.74907,2534.0,2533.2,3.94754]
[1730859853981,3.94649,2533.9,2533.0,3.94778]
[1730859854199,3.94649,2533.9,2533.1,3.94764]
[1730859854559,3.9468,2533.7,2533.0,3.94778]
[1730859854778,3.94698,2533.6,2532.7,35.0]
[1730859854954,3.94734,2533.4,2532.7,35.0]
[1730859855152,0.8027,2533.3,2532.4,3.94872]
[1730859855458,0.8027,2533.3,2532.6,3.9485]
[1730859855663,0.8027,2533.3,2532.6,3.94841]
[1730859855888,0.8027,2533.3,2532.9,3.94794]
[1730859856185,0.8027,2533.3,2532.6,3.94838]
[1730859856484,3.94759,2533.2,2532.4,3.9487]
[1730859857002,3.94787,2533.1,2532.2,3.94905]
[1730859857149,3.94777,2533.1,2532.4,3.94879]
[1730859857349,4.7502,2533.3,2532.6,3.94842]
[1730859857549,3.9476,2533.2,2532.5,3.94865]
[1730859858472,3.94783,2533.1,2532.3,3.94891]
[1730859858678,8.69775,2533.3,2532.5,3.94856]
[1730859858988,3.94781,2533.1,2532.3,7.89776]
[1730859859187,3.94781,2533.1,2532.3,3.94886]
[1730859859489,3.94781,2533.1,2532.1,35.8268]
[1730859859490,3.94774,2533.1,2532.4,3.94873]
[1730859859667,3.94789,2533.0,2532.4,3.94873]
[1730859860363,3.94837,2532.7,2532.1,35.0]
[1730859860685,3.94804,2532.9,2532.0,3.94934]
[1730859860891,3.94829,2532.8,2532.1,3.94918]
[1730859861398,4.75017,2533.3,2532.0,38.94934]
[1730859861399,3.9478,2533.1,2532.4,3.94879]
[1730859861555,0.8027,2533.3,2532.6,3.94841]
[1730859861877,0.8027,2533.3,2532.0,35.0]
[1730859862080,7.89567,2533.1,2532.3,3.94884]
[1730859862375,3.94824,2532.8,2532.1,3.94929]
[1730859862556,3.94824,2532.8,2532.1,7.89848]
[1730859862762,3.94824,2532.8,2532.1,3.94919]
[1730859863095,0.8027,2533.3,2532.1,3.94919]
[1730859863300,3.94833,2532.8,2532.1,3.94919]
[1730859863501,0.8127,2532.7,2531.9,7.89902]
[1730859863702,0.8127,2532.7,2531.5,3.95017]
[1730859863998,0.8127,2532.7,2532.3,3.94895]
[1730859864492,0.8127,2532.7,2532.4,7.89752]
[1730859864701,0.8127,2532.7,2531.9,4.02853924]
[1730859864702,0.8127,2532.7,2532.5,3.94861]
[1730859864874,0.8127,2533.2,2532.5,3.94861]
[1730859865051,4.76038,2533.2,2532.5,3.94861]
[1730859865394,0.8127,2533.2,2532.5,3.94856]
[1730859865558,0.8127,2533.2,2532.6,3.94839]
[1730859865760,4.76027,2533.2,2532.5,3.94856]
[1730859866098,3.94775,2533.1,2532.5,3.94856]
[1730859867099,4.76028,2533.2,2532.5,3.94856]
[1730859867394,3.94778,2533.1,2532.5,3.94856]
[1730859867980,0.8127,2533.2,2532.5,3.94856]
[1730859868595,0.8127,2533.2,2532.4,3.94881]
[1730859868755,3.94826,2532.8,2532.1,3.94917]
[1730859869387,3.94826,2532.8,2531.9,3.94951]
[1730859869388,3.94835,2532.7,2531.9,3.94951]
[1730859869605,3.94826,2532.8,2531.9,3.94946]
[1730859869781,7.89595,2533.0,2532.2,3.94903]
[1730859870097,3.94797,2533.0,2532.3,3.94886]
[1730859870594,3.94797,2533.0,2532.4,3.94881]
[1730859870827,7.76036,2533.2,2531.6,35.0]
[1730859870828,0.8127,2533.2,2532.6,3.94837]
[1730859871119,3.94775,2533.1,2532.4,3.94871]
[1730859871323,3.94792,2533.0,2532.4,3.94871]
[1730859871481,3.94807,2532.9,2532.2,3.9491]
[1730859871685,1.588736,2533.2,2532.0,3.94933]
[1730859871911,3.94788,2533.0,2531.7,3.94985]
[1730859872122,3.94805,2532.9,2532.2,3.94902]
[1730859872420,3.94823,2532.8,2532.2,3.94902]
[1730859872723,3.94788,2533.0,2532.4,3.94879]
[1730859872928,3.94811,2532.9,2532.3,3.94896]
[1730859873089,3.94811,2532.9,2532.2,3.94902]
[1730859873416,3.94833,2532.8,2532.0,3.94934]
[1730859873623,1.19397,2533.2,2532.5,3.94866]
[1730859873825,4.76036,2533.2,2532.5,3.94866]
[1730859873989,0.8127,2533.2,2532.1,7.8984]
[1730859874331,3.94829,2532.8,2532.1,7.8984]
[1730859874690,3.94861,2532.6,2531.9,3.94953]
[1730859875020,3.94861,2532.6,2531.9,3.9495]
[1730859875239,3.94849,2532.7,2532.0,3.94943]
[1730859875890,3.94866,2532.5,2532.0,3.94943]
[1730859876114,3.94866,2532.5,2531.6,3.94997]
[1730859876115,3.94883,2532.4,2531.6,3.94997]
[1730859876282,3.94883,2532.4,2531.8,3.94975]
[1730859876496,3.94898,2532.3,2531.8,3.94975]
[1730859877524,0.8174,2532.5,2531.9,3.94958]
[1730859877730,0.8174,2532.5,2531.8,3.94975]
[1730859877886,3.94883,2532.4,2531.8,7.89941]
[1730859878087,3.94883,2532.4,2531.9,3.94958]
[1730859878291,3.94883,2532.4,2531.8,3.94966]
[1730859879124,7.89774,2532.4,2531.7,3.94981]
[1730859879288,0.8174,2532.5,2531.4,4.76003]
[1730859879490,0.8174,2532.5,2531.4,3.95023]
[1730859879491,3.94942,2532.1,2531.4,3.95023]
[1730859879817,3.94948,2532.0,2531.4,7.90052]
[1730859879999,3.94948,2532.0,2531.4,3.95023]
[1730859880192,3.94964,2531.9,2531.4,3.95023]
[1730859880523,3.94945,2532.0,2531.4,3.95023]
[1730859880724,3.9496,2531.9,2531.2,3.95061]
[1730859880929,3.94993,2531.7,2531.2,3.95061]
[1730859881230,3.94977,2531.8,2531.2,3.95061]
[1730859881399,3.9502,2531.6,2531.0,3.9509]
[1730859881601,3.9502,2531.6,2531.1,0.35358948]
[1730859881802,3.9503,2531.5,2531.1,0.35358948]
[1730859882006,3.95038,2531.4,2531.1,0.35358948]
[1730859882207,3.95038,2531.4,2530.8,0.35358948]
[1730859882208,3.95062,2531.3,2530.8,0.35358948]
[1730859882410,3.95014,2531.6,2530.7,0.35358948]
[1730859882595,0.8174,2531.8,2531.2,3.95068]
[1730859883008,0.8174,2531.8,2531.3,3.95042]
[1730859883895,0.8174,2531.8,2531.4,3.95035]
[1730859884229,3.94941,2532.1,2531.5,3.95014]
[1730859884448,3.94898,2532.3,2531.7,3.9498]
[1730859884637,3.94915,2532.2,2531.7,3.9498]
[1730859884942,3.94915,2532.2,2531.7,38.9498]
[1730859885096,3.94929,2532.1,2531.7,35.0]
[1730859885291,3.94929,2532.1,2531.5,3.9501]
[1730859885595,3.94929,2532.1,2531.6,3.95005]
[1730859885814,3.94914,2532.2,2531.6,38.95005]
[1730859886145,3.94914,2532.2,2531.6,3.94995]
[1730859886333,3.94914,2532.2,2531.7,3.9499]
[1730859886935,3.94907,2532.3,2531.6,3.94995]
[1730859887248,3.94907,2532.3,2531.8,3.94975]
[1730859887548,3.94916,2532.2,2531.6,3.94995]
[1730859887724,3.94916,2532.2,2531.6,7.89993]
[1730859887926,3.94938,2532.1,2531.6,3.94995]
[1730859888451,3.94957,2532.0,2531.4,3.95029]
[1730859888813,6.94858,2532.6,2531.2,3.95066]
[1730859888814,3.94976,2531.8,2531.5,0.70849286]
[1730859889068,3.95005,2531.7,2531.5,0.35423307]
[1730859889346,3.95007,2531.6,2531.5,0.35423307]
[1730859889855,3.94988,2531.8,2531.5,0.35423307]
[1730859890861,6.94858,2532.6,2531.5,0.43323915]
[1730859890862,3.94907,2532.3,2531.5,0.43323915]
[1730859891063,0.7934,2532.5,2532.2,3.94909]
[1730859891247,0.01,2533.6,2532.0,3.94935]
[1730859891248,3.94831,2532.8,2532.0,3.94935]
[1730859891447,3.94851,2532.6,2532.0,3.94935]
[1730859891767,7.89713,2532.6,2532.0,3.94935]
[1730859891957,0.7934,2532.9,2531.8,3.94965]
[1730859891958,3.94892,2532.4,2531.8,3.94965]
[1730859892125,3.94902,2532.3,2531.8,3.94965]
[1730859892327,3.94892,2532.4,2531.8,3.94965]
[1730859892549,7.89784,2532.4,2531.8,3.94965]
[1730859892715,3.94892,2532.4,2531.8,3.94965]
[1730859892921,3.94859,2532.6,2532.0,3.94933]
[1730859893116,3.94884,2532.4,2531.8,3.94965]
[1730859893342,3.94884,2532.4,2531.9,3.94955]
[1730859893531,7.89721,2532.6,2532.0,3.94941]
[1730859893735,3.94859,2532.6,2532.0,3.94941]
[1730859893976,3.94867,2532.5,2532.0,3.94941]
[1730859894338,3.94859,2532.6,2532.0,7.89882]
[1730859894531,3.94852,2532.6,2531.9,3.94947]
[1730859894768,3.94852,2532.6,2532.0,3.94942]
[1730859895473,3.94852,2532.6,2531.9,3.94947]
[1730859896033,3.94852,2532.6,2532.1,3.94926]
[1730859897129,3.94867,2532.5,2532.0,3.94943]
[1730859897332,3.94852,2532.6,2532.0,3.94943]
[1730859897549,3.94819,2532.8,2531.9,3.94947]
[1730859897741,3.94819,2532.8,2531.7,4.70119]
[1730859897742,3.94891,2532.4,2531.7,4.70119]
[1730859897957,3.94891,2532.4,2531.8,4.30373859]
[1730859898162,3.94906,2532.3,2531.7,4.70119]
[1730859898365,3.94914,2532.2,2531.7,3.94979]
[1730859898634,3.94914,2532.2,2531.5,3.95017]
[1730859898837,3.94944,2532.0,2531.6,0.35420021]
[1730859899337,4.74254,2532.2,2531.6,3.95005]
[1730859899338,0.7934,2532.2,2531.6,3.95005]
[1730859899541,0.7934,2532.2,2531.8,3.94974]
[1730859899773,0.7934,2532.5,2531.8,3.94967]
[1730859899975,3.94884,2532.4,2531.9,3.94958]
[1730859900245,3.94884,2532.4,2531.8,3.94967]
[1730859900246,0.7934,2532.5,2532.0,3.94932]
[1730859900546,3.94859,2532.6,2532.0,3.94932]
[1730859901071,3.94894,2532.4,2531.7,3.94991]
[1730859901272,3.94945,2532.0,2531.5,3.95017]
[1730859901490,3.94908,2532.3,2531.6,3.95005]
[1730859901667,3.94835,2532.7,2532.0,3.94942]
[1730859901838,0.7788,2533.5,2531.9,0.7532]
[1730859902039,0.01,2534.4,2531.9,0.7532]
[1730859902040,0.7788,2533.9,2533.3,3.9473]
[1730859902241,0.7788,2534.7,2533.8,3.94664]
[1730859902440,0.7788,2534.7,2534.0,3.94617]
[1730859902974,3.94481,2535.0,2534.3,3.94571]
[1730859903139,0.7788,2535.2,2533.8,0.7532]
[1730859903482,0.7788,2535.2,2534.3,3.94572]
[1730859903648,3.94477,2535.0,2534.3,3.94572]
[1730859903848,3.94477,2535.0,2534.0,3.94621]
[1730859904049,4.72326,2535.2,2534.7,3.94509]
[1730859904050,0.7788,2535.2,2534.7,3.94509]
[1730859904257,0.7788,2535.6,2534.8,3.94508]
[1730859904596,3.94431,2535.3,2534.5,3.9454]
[1730859904787,0.1431951,2535.7,2535.0,3.94467]
[1730859905001,0.1431951,2535.7,2534.9,0.7532]
[1730859905213,5.38805362,2535.6,2534.2,3.94588]
[1730859905429,5.38805362,2535.6,2534.2,3.94601]
[1730859905633,0.1431951,2535.7,2534.6,3.94535]
[1730859905634,3.944,2535.5,2534.6,3.94535]
[1730859905778,0.1431951,2535.7,2534.7,0.07889698]
[1730859905980,0.1431951,2535.7,2535.1,3.9446]
[1730859906334,0.1431951,2535.7,2535.3,3.94429]
[1730859906478,0.1431951,2535.7,2535.4,4.02302407]
[1730859906678,0.1431951,2535.7,2535.5,3.94393]
[1730859907109,0.1431951,2535.7,2535.6,0.07886751]
[1730859907423,0.1431951,2535.7,2535.6,4.02269751]